Cogmind - Beta 16 @@@ ROGUE MODE // 2025.11.13 @ 03:30:19 Player: Darcyisverycute Result: Self-destructed Performance ------------- Evolutions (5) 2500 Regions Visited (16) 3200 Robots Destroyed (286) 1430 Value Destroyed (6978) 6978 Prototype IDs (36) 720 Alien Tech Used (0) 0 Bonus (2121) 2121 TOTAL SCORE: 16949 Bonus ------- High Alert Combat Kills 343 Follower Combat Kills 743 Registered with UFD 300 Met Optimus in HQ 500 Met Data Miner 300 Friendly Fire -65 Cogmind --------- Core Integrity 56/1000 Matter 22/300 Energy 150/150 System Corruption 29% Temperature Cool (9) Movement Hovering (161) Ox2 Location -5/Factory Parts ------- > --- POWER (2) -------- Micro Fission Core > --- PROPULSION (6) --- Improved Hover Unit Cooled Gravmag System > --- UTILITY (7) ------ High-capacity Storage Unit Spectral Analyzer Advanced Signal Interpreter Experimental Transmission Jammer Improved Hacking Suite Advanced Hacking Suite > --- WEAPON (2) ------- (None) > --- INVENTORY (20) --- Scrap Suit Improved Energy Well (400) Triangulator Energy Filter Stasis Canceller Transmission Jammer Experimental ECM Suite A0-MCA's Component Scanner Improved System Restoration Module Advanced Drone Bay (2/2) Neutron Cannon Advanced KE Penetrator Advanced KE Penetrator Guided EMP Blaster Guided Micro-nuke Launcher Improved Plasma Cutter Peak State ------------ > --- POWER ------------ Micro Fission Core Micro Fission Core > --- PROPULSION ------- Gravmag Array Gravmag Array Antigrav System Cooled Gravmag System > --- UTILITY ---------- High-capacity Storage Unit Triangulator Spectral Analyzer Advanced Signal Interpreter Improved Hacking Suite Advanced Hacking Suite Improved System Restoration Module > --- WEAPON ----------- Guided EMP Blaster > --- INVENTORY -------- Scrap Suit Advanced Cooling System Improved Energy Well Improved Matter Compressor Energy Filter Stasis Canceller Transmission Jammer Experimental ECM Suite A0-MCA's Component Scanner Improved System Restoration Module Advanced Drone Bay Heavy Phase Cannon Overtuned Coil Gun Long-range Missile Launcher Improved Plasma Cutter [Rating: 102] Favorites ----------- Power Cooled Ion Engine Engine Cooled Ion Engine Power Core Fusion Compressor Reactor Antimatter Reactor Propulsion Light Treads Treads Light Treads Wheel Wheel Hover Unit Gravmag Array Flight Unit Improved Flight Unit Utility High-capacity Storage Unit Device Advanced Sensor Array Storage High-capacity Storage Unit Processor Spectral Analyzer Hackware Improved Hacking Suite Protection Heavy Armor Plating Weapon Improved Light Cannon Energy Gun Variable Charge Gun Energy Cannon Advanced Beam Cannon Ballistic Gun Compact Gauss Rifle Ballistic Cannon Improved Light Cannon Launcher Guided EMP Blaster Special Weapon Mining Laser Slashing Weapon Katana Piercing Weapon Kinetic Spear Build | -11 -10 -10 -9 -9 -9 -9 -6 -6 -6 -6 -6 -6 -5 -5 -5 -5 ------- Run | Yrd Mat Min Mat Sto Rec Scr Fac Was Fac Low Low Dat Pro Fac Was Fac Slots Evolved 10 | . . . 2 . . . 6 . . . . . . 2 . . Power 1 | . . . . . . . 1 . . . . . . . . . Propulsion 4 | . . . 1 . . . 3 . . . . . . . . . Utility 5 | . . . 1 . . . 2 . . . . . . 2 . . Weapon . | . . . . . . . . . . . . . . . . . Parts Attached 152 | 9 9 1 13 14 . 16 18 11 4 5 1 . . 4 . 47 Power 23 | 1 . 1 . 2 . 2 3 4 1 1 . . . . . 8 Engine 12 | 1 . . . 2 . 2 2 1 . . . . . . . 4 Core 8 | . . 1 . . . . 1 . 1 1 . . . . . 4 Reactor 3 | . . . . . . . . 3 . . . . . . . . Propulsion 41 | 2 1 . 4 6 . 4 8 . 2 1 . . . . . 13 Treads 14 | 2 1 . 4 6 . 1 . . . . . . . . . . Leg . | . . . . . . . . . . . . . . . . . Wheel 1 | . . . . . . . . . . . . . . . . 1 Hover 21 | . . . . . . . 6 . 2 1 . . . . . 12 Flight 5 | . . . . . . 3 2 . . . . . . . . . Utility 53 | 3 3 . 7 3 . 7 4 4 1 . 1 . . 3 . 17 Device 24 | 2 . . . 1 . 3 2 4 1 . . . . 1 . 10 Storage 7 | 1 2 . 1 1 . . . . . . . . . . . 2 Processor 7 | . . . . . . 3 2 . . . 1 . . . . 1 Hackware 4 | . . . . . . . . . . . . . . 2 . 2 Protection 11 | . 1 . 6 1 . 1 . . . . . . . . . 2 Artifact . | . . . . . . . . . . . . . . . . . Weapon 35 | 3 5 . 2 3 . 3 3 3 . 3 . . . 1 . 9 Energy Gun 3 | 2 . . . . . . . . . . . . . . . 1 Energy Cannon 2 | . . . 1 . . . . . . . . . . . . 1 Ballistic Gun 8 | 1 1 . . . . 2 1 1 . . . . . . . 2 Ballistic Cannon 13 | . 3 . 1 1 . 1 1 2 . 2 . . . . . 2 Launcher 4 | . . . . . . . 1 . . 1 . . . . . 2 Special Weapon 3 | . 1 . . 1 . . . . . . . . . . . 1 Impact Weapon . | . . . . . . . . . . . . . . . . . Slashing Weapon 1 | . . . . 1 . . . . . . . . . . . . Piercing Weapon 1 | . . . . . . . . . . . . . . 1 . . Special Melee Weapon . | . . . . . . . . . . . . . . . . . Unidentified Prototypes 13 | . 1 . 1 2 . 1 1 2 . . . . . 1 . 4 Corrupted Parts 2 | . . . . . . . . . . . . . . . . 2 System Corruption 17 | . . . . . . . . . . . . . . . . 17 Parts Lost 40 | . 2 . 1 . . 1 9 . 1 1 . . 1 . 1 23 Power 13 | . . . 1 . . 1 3 . . . . . . . 1 7 Propulsion 17 | . 2 . . . . . 4 . . 1 . . 1 . . 9 Utility 7 | . . . . . . . 1 . 1 . . . . . . 5 Weapon 3 | . . . . . . . 1 . . . . . . . . 2 Highest Loss Streak 9 | . 1 . 1 . . 1 9 . 1 1 . . 1 . 1 4 To Critical Strikes 1 | . . . . . . . . . . . . . . . . 1 Average Backups 15 | 3 18 20 19 19 20 17 8 8 9 9 10 10 10 8 9 17 Power . | . . . . . . . . . . . . . . . . . Propulsion 2 | . 4 4 2 4 5 3 . . . . . . . . . . Utility 7 | 1 5 11 9 8 9 8 3 5 5 6 6 6 6 4 5 9 Weapon 3 | 1 8 4 5 4 4 1 1 1 1 1 2 2 2 2 2 3 Tool/Special . | . . . . . . . . . . . . . . . . . Unused Backups 48 | 2 8 . 2 2 . 11 3 1 1 . . . . . . 18 Power 1 | 1 . . . . . . . . . . . . . . . . Propulsion 1 | . 1 . . . . . . . . . . . . . . . Utility 26 | 1 2 . . 2 . 6 1 1 1 . . . . . . 12 Weapon 13 | . 5 . 2 . . 1 . . . . . . . . . 5 Tool/Special 7 | . . . . . . 4 2 . . . . . . . . 1 Average Slot Usage (%) 88 | . 99 99 96 90 88 82 93 85 87 82 86 76 85 81 72 78 Engine 7 | . 14 10 3 11 11 10 11 5 . . . . . . . 3 Core 2 | . . 2 7 . . . . 2 5 6 6 6 6 5 2 4 Reactor 1 | . . . . . . . . 3 6 6 6 6 6 5 5 . Treads 19 | . 28 28 33 33 33 26 . . . . . . . . . . Hover 7 | . . . . . . . 6 26 25 22 26 26 25 17 17 24 Flight 2 | . . . . . . 6 30 1 2 . . . . . . . Device 5 | . 13 14 8 4 . 1 4 5 4 5 6 6 6 5 5 6 Storage 9 | . 13 14 11 11 11 9 6 6 6 6 6 6 6 5 5 5 Processor 5 | . . . . . . . 19 20 20 20 20 20 20 17 13 11 Hackware 1 | . . . . . . . . . . . . . . 10 11 10 Protection 4 | . . . 10 8 11 7 . . . . . . . . . . Energy Cannon 4 | . . . 6 9 10 8 . . . . . . . . . 1 Ballistic Cannon 11 | . 25 28 15 11 6 8 . 9 12 12 13 3 13 8 2 . Slashing Weapon 1 | . . . . 1 5 . 5 . . . . . . . . . Peak Build Rating 102 | 9 12 14 21 23 23 30 62 80 83 83 83 83 83 88 87 102 Average Rating 39 | 6 10 12 17 21 22 24 58 73 79 78 82 72 82 86 74 85 On Entrance 48 | . 9 12 14 17 22 22 30 57 79 79 83 83 83 79 87 69 Avg Prop Armor Cover (%) 4 | . . . . . . . 6 1 1 . . . . . . 4 Naked Turns . | . . . . . . . . . . . . . . . . . Heaviest Build 79 | 10 56 54 68 71 71 75 27 48 51 50 50 50 50 50 43 79 Greatest Support 68 | 40 40 40 60 60 60 60 68 56 64 61 61 61 61 52 52 62 Greatest Overweight (x) 2 | . 1 1 1 1 1 1 1 . . . . . . . . 2 Average Overweight (x) . | . . 1 . . 1 . . . . . . . . . . . Largest Inventory Capacity 20 | 8 20 20 20 20 20 20 10 10 10 10 10 10 10 10 10 20 Average Capacity 16 | 5 18 20 20 20 20 17 10 10 10 10 10 10 10 10 10 19 Most Carried 20 | 5 20 20 20 20 20 20 10 10 10 10 10 10 10 10 10 20 Average Carried 16 | 3 18 19 19 19 20 17 9 9 9 9 10 10 10 9 10 18 Final Capacity 20 | 5 20 20 20 20 20 10 10 10 10 10 10 10 10 10 10 20 Final Carried 20 | 5 20 20 20 20 20 10 9 10 10 10 10 10 10 10 10 20 Scrap Suit Usage (%) 1 | . . . . . . . . . . . . . . . . 2 Parts Cannibalized 3 | . . . . . . . . . . . . . . . . 3 Class Distribution -------------------- 56% | Mutant 18% | Scout 11% | Scavenger-Mutant 7% | Hacker-Mutant Dominant Class ---------------- Mutant | -10/Materials Mutant | -10/Mines Mutant | -9/Materials Mutant | -9/Storage Scavenger-Mutant | -9/Recycling Mutant | -9/Scraptown Scavenger-Scout | -6/Factory Scout | -6/Waste Scout | -6/Factory Scout | -6/Lower Caves Scout | -6/Lower Caves Scout | -6/Data Miner Scout | -5/Proximity Caves Hacker-Scout | -5/Factory Hacker-Mutant | -5/Waste Hacker-Mutant | -5/Factory Resources | -11 -10 -10 -9 -9 -9 -9 -6 -6 -6 -6 -6 -6 -5 -5 -5 -5 ----------- Run | Yrd Mat Min Mat Sto Rec Scr Fac Was Fac Low Low Dat Pro Fac Was Fac Matter Collected 9012 | 281 1002 . 983 1597 98 170 167 479 563 1393 329 . 104 54 . 1792 Remotely . | . . . . . . . . . . . . . . . . . Salvage Created 10123 | 146 714 . 1439 3150 300 70 592 295 365 707 38 . 48 160 . 2099 Parts 555 | 12 55 . 110 155 11 2 30 . 26 24 . . . 4 . 126 Haulers Intercepted 15 | . 2 . 4 6 . . . . 1 . . . . . . 2 Recyclers Shooed 13 | . 1 . 2 5 . . 2 . 1 . . . . . . 2 Parts Field Recycled . | . . . . . . . . . . . . . . . . . Retrieved Matter . | . . . . . . . . . . . . . . . . . Parts Self-Destructed 29 | . . . . . . 6 . . . 23 . . . . . . Prevented 1 | . . . . . . 1 . . . . . . . . . . Parts Restored . | . . . . . . . . . . . . . . . . . Kills | -11 -10 -10 -9 -9 -9 -9 -6 -6 -6 -6 -6 -6 -5 -5 -5 -5 ------- Run | Yrd Mat Min Mat Sto Rec Scr Fac Was Fac Low Low Dat Pro Fac Was Fac Combat Hostiles Destroyed 152 | . 21 . 32 35 3 1 5 1 2 20 1 . 1 . . 30 Melee 2 | . . . . . . 1 . . . . . . . . . 1 Guns 4 | . . . . . . . . . . . . . . . . 4 Cannons 122 | . 21 . 32 34 3 . . 1 2 17 1 . 1 . . 10 AOE 18 | . . . . . . . 5 . . 3 . . . . . 10 Classes Destroyed 22 | 2 7 . 3 1 . 1 1 1 1 3 . . . . . 2 Worker 40 | . 4 . 2 21 . . 6 . . . . . . . . 7 Builder 23 | . 1 . . 10 . . 1 . 4 . . . . . . 7 Tunneler 7 | 3 . . 1 . . . . . 1 . . . . . . 2 Hauler 15 | . 2 . 4 6 . . . . 1 . . . . . . 2 Recycler 31 | 1 3 . . 18 2 . 3 . 1 . . . . 1 . 2 Minesweeper 1 | . . . . . . . . . . 1 . . . . . . Mechanic 1 | . . . 1 . . . . . . . . . . . . . Operator 8 | . 2 . 1 2 . . 2 . . . . . . . . 1 Watcher 12 | . 3 . 3 2 . . 3 . . . . . . . . 1 Swarmer 35 | . 6 . 6 8 . . 4 . . 7 . . . . . 4 Grunt 65 | . 15 . 15 15 . . . . 1 8 1 . . . . 10 Brawler 2 | . . . . 1 . . . . . 1 . . . . . . Duelist 1 | . . . 1 . . . . . . . . . . . . . Sentry 26 | . . . 10 11 3 . . . . 1 . . 1 . . . Hunter 7 | . . . . . . . 1 . . 2 . . . . . 4 Programmer 9 | . . . . . . . . . 1 . . . . . . 8 Behemoth 1 | . . . . . . . . . . . . . . . . 1 Compactor 1 | . . . . . . . . 1 . . . . . . . . Scrapper 1 | . . . . . . 1 . . . . . . . . . . Samaritan 1 | . . . . . . . . . . 1 . . . . . . Thief 1 | . . . . . . . . . . 1 . . . . . . Assembled 3 | . . . . . . . . . . . . . . . . 3 Best Kill Streak 12 | 2 7 . 6 12 1 1 12 1 4 3 1 . 1 1 . 8 Combat Bots Only 8 | . 6 . 5 8 1 1 5 1 1 3 1 . 1 . . 5 Max Kills in Single Turn 5 | 1 2 . 1 2 1 1 5 1 2 2 1 . 1 1 . 3 Gunslinging . | . . . . . . . . . . . . . . . . . Exploded 3 | . . . . . . . 2 . . 2 . . . . . 3 Melee 1 | . . . . . . 1 . . . . . . . . . 1 Uniques/NPCs Destroyed . | . . . . . . . . . . . . . . . . . Combat | -11 -10 -10 -9 -9 -9 -9 -6 -6 -6 -6 -6 -6 -5 -5 -5 -5 -------- Run | Yrd Mat Min Mat Sto Rec Scr Fac Was Fac Low Low Dat Pro Fac Was Fac Hostile Shots Fired 720 | . 82 . 75 114 8 39 57 . 7 51 . . 7 16 1 263 Missed 234 | . 21 . 17 38 . 20 21 . 2 23 . . . 8 . 84 Hits 486 | . 61 . 58 76 8 19 36 . 5 28 . . 7 8 1 179 Melee 2 | . . . . . . . . . . . . . . . 1 1 Projectile 484 | . 61 . 58 76 8 19 36 . 5 28 . . 7 8 . 178 AOE 2 | . . . . . . . . . . . . . . 1 . 1 Critical Strikes 13 | . . . 1 2 . 1 1 . . 1 . . . . 1 6 Part Disruptions 2 | . . . . . . . . . . . . . . . . 2 Damage Taken 8069 | . 615 . 764 838 115 260 841 . 79 442 . . 124 139 55 3797 Core 1624 | . 157 . 71 78 . 115 168 . 14 77 . . . 20 . 924 Absorbed by Shields 21 | . . . . 21 . . . . . . . . . . . . Regen/Repaired (Parts) 605 | . 97 . 58 131 . . . 272 . . . . . . . 47 Core Remaining (%) 60 | 100 . 37 . . . 34 . . . . . . 69 . . . Volleys Fired 744 | 14 93 . 85 198 8 . 8 13 42 105 5 . 6 3 . 164 Largest 2 | 2 2 . 2 2 2 . 1 2 2 2 2 . 2 1 . 2 Hottest 225 | 60 100 . 101 101 101 . 33 96 96 96 94 . 94 47 . 225 Shots Fired 1302 | 28 184 . 168 376 15 . 8 26 71 208 7 . 12 3 . 196 Gun 80 | 28 6 . . . . . 1 . . . . . . . . 45 Cannon 1156 | . 174 . 168 376 15 . . 26 70 206 7 . 12 3 . 99 Launcher 59 | . . . . . . . 7 . 1 2 . . . . . 49 Special 7 | . 4 . . . . . . . . . . . . . . 3 Kinetic 909 | 14 180 . 112 232 7 . 1 26 70 206 7 . 12 3 . 39 Thermal 328 | 10 4 . 56 144 8 . . . . . . . . . . 106 Explosive 20 | . . . . . . . 7 . 1 2 . . . . . 10 Electromagnetic 43 | 4 . . . . . . . . . . . . . . . 39 Robot Hit Streak 19 | 7 12 . 19 16 6 . 7 5 4 8 1 . 5 . . 10 Robot Miss Streak 14 | 4 6 . 4 7 1 . 3 9 14 8 . . 2 . . 9 Penetration Max 1 | . . . . . . . . . 1 . . . . . . . Secondary Targets . | . . . . . . . . . . . . . . . . . Shots Hit Robots 654 | 20 96 . 113 214 10 1 15 11 17 64 1 . 7 1 . 84 Core Hits 342 | 6 36 . 49 93 5 1 22 2 16 29 1 . 3 1 . 78 Critical Kills 22 | . . . . 1 . . . 1 6 12 . . . . . 2 Critical Parts Destroyed 31 | . . . . . . . . 3 5 15 . . . . . 8 Critical Strikes 85 | . 10 . 3 7 . . . 11 11 29 . . 1 . . 13 Meltdown 1 | . . . . 1 . . . . . . . . . . . . Destroy 62 | . . . . . . . . 11 11 29 . . . . . 11 Blast 20 | . 10 . 3 6 . . . . . . . . 1 . . . Impale 2 | . . . . . . . . . . . . . . . . 2 Melee Attacks 138 | . . . . 26 8 19 39 . . . . . . 6 . 40 Impact . | . . . . . . . . . . . . . . . . . Slashing 92 | . . . . 26 8 19 39 . . . . . . . . . Piercing 46 | . . . . . . . . . . . . . . 6 . 40 Sneak Attacks 22 | . . . . 1 1 . 6 . . . . . . 1 . 13 Combat Hostiles . | . . . . . . . . . . . . . . . . . Follow-up Attacks . | . . . . . . . . . . . . . . . . . Damage Inflicted 21388 | 225 2127 . 2578 4994 271 41 2051 411 641 1787 43 . 177 84 . 5958 Guns 538 | 225 9 . . . . . 23 . . . . . . . . 281 Cannons 14169 | . 2115 . 2569 4924 211 . . 411 606 1563 43 . 177 . . 1550 Explosions 4205 | . . . . . . . 1388 . 35 224 . . . . . 2558 Melee 2427 | . . . . 70 60 41 640 . . . . . . 84 . 1532 Ramming 38 | . 3 . 9 . . . . . . . . . . . . 26 Kinetic 10115 | 110 2124 . 1558 2851 97 . 23 411 606 1563 43 . 177 . . 552 Thermal 4563 | 75 . . 1011 2073 114 . . . . . . . . . . 1290 Explosive 2781 | . . . . . . . 1388 . 35 224 . . . . . 1134 Electromagnetic 1464 | 40 . . . . . . . . . . . . . . . 1424 Impact . | . . . . . . . . . . . . . . . . . Slashing 811 | . . . . 70 60 41 640 . . . . . . . . . Piercing 1616 | . . . . . . . . . . . . . . 84 . 1532 Highest Corruption 29 | . 1 1 . . . . 2 1 2 2 2 2 2 . 6 29 Average Corruption 3 | . 1 1 . . . . 1 1 1 2 2 2 2 . 6 11 Corruption Purged 15 | . . . . . . . 2 . . . . . . . . 13 Corruption Blocked . | . . . . . . . . . . . . . . . . . Effects 155 | . 18 1 . . . . 3 2 8 22 12 1 3 . 2 83 Message Errors 32 | . 2 1 . . . . . . 2 6 2 . 2 . . 17 Matter Fused 41 | . 4 . . . . . 1 2 2 6 5 . 1 . 1 19 Heat Flow Errors 17 | . 4 . . . . . . . 1 1 1 1 . . 1 8 Energy Discharges 22 | . 3 . . . . . . . 1 2 3 . . . . 13 Parts Rejected 3 | . . . . . . . . . . . . . . . . 3 Parts Fused 1 | . . . . . . . . . . . 1 . . . . . Data Loss (minor) 21 | . 2 . . . . . 1 . 2 4 . . . . . 12 Data Loss (major) 5 | . 1 . . . . . . . . 2 . . . . . 2 Misfires 4 | . 2 . . . . . . . . 1 . . . . . 1 Alerts 2 | . . . . . . . 1 . . . . . . . . 1 Misdirections 4 | . . . . . . . . . . . . . . . . 4 Weapon Failures 3 | . . . . . . . . . . . . . . . . 3 Overload Shots 11 | . . . . . . . . . . . . . . . . 11 Effects 1 | . . . . . . . . . . . . . . . . 1 Heat Surge 1 | . . . . . . . . . . . . . . . . 1 Overflow Damage 673 | . 90 . 3 118 35 . 264 . 7 38 . . . . . 118 Projectiles 273 | . 90 . 3 88 . . . . 7 19 . . . . . 66 Explosions 163 | . . . . . . . 108 . . 19 . . . . . 36 Melee 237 | . . . . 30 35 . 156 . . . . . . . . 16 Knockbacks 87 | . 28 . 14 19 . . . 2 6 9 . . . . . 9 Impact . | . . . . . . . . . . . . . . . . . Kinetic 77 | . 23 . 14 18 . . . 2 5 8 . . . . . 7 Secondary 10 | . 5 . . 1 . . . . 1 1 . . . . . 2 Self-Inflicted Damage 350 | . . . . . . . 199 . . . . . . . . 151 Shots 6 | . . . . . . . 3 . . . . . . . . 3 Rammed 4 | . 1 . 2 . . . . . . . . . . . . 1 Targets Rammed 4 | . 1 . 2 . . . . . . . . . . . . 1 Kicked . | . . . . . . . . . . . . . . . . . Crushed . | . . . . . . . . . . . . . . . . . Highest Temperature 453 | 40 232 . 318 355 117 26 5 127 250 257 213 100 140 . 93 453 Average Temperature 74 | 20 49 . 81 83 37 8 5 48 59 51 62 52 71 . 47 99 Received Heat Transfer 1646 | . 201 . 285 331 36 151 48 . 18 108 . . . . . 468 Effects 16 | . 2 . 2 2 . . . . . . . . . . . 10 Shutdowns 3 | . . . . . . . . . . . . . . . . 3 Energy Bleed 2 | . . . . . . . . . . . . . . . . 2 Interference 8 | . 2 . 2 1 . . . . . . . . . . . 3 Matter Decay 1 | . . . . 1 . . . . . . . . . . . . Damage (major) 2 | . . . . . . . . . . . . . . . . 2 Siege Activations . | . . . . . . . . . . . . . . . . . Martial Activations . | . . . . . . . . . . . . . . . . . Shielding Activations . | . . . . . . . . . . . . . . . . . Robots Disrupted . | . . . . . . . . . . . . . . . . . Combat Hostiles . | . . . . . . . . . . . . . . . . . Robots Corrupted 6 | . . . . . . . . . . . . . . . . 6 Combat Hostiles 5 | . . . . . . . . . . . . . . . . 5 Parts Fried 4 | . . . . . . . . . . . . . . . . 4 Impact Corruptions 1 | . . . . . . . . . . . . . . . . 1 Robots Melted 1 | . . . . 1 . . . . . . . . . . . . Combat Hostiles 1 | . . . . 1 . . . . . . . . . . . . Parts Melted 8 | . . . . 3 . 1 . . . . . . . . . 4 Heat Transferred 6909 | 175 . . 1702 3552 185 . . . . . . . . . . 1295 Parts Sabotaged . | . . . . . . . . . . . . . . . . . Parts Stolen . | . . . . . . . . . . . . . . . . . Parts Stripped . | . . . . . . . . . . . . . . . . . Power Chain Reactions 1 | . . . . . . . . . . . . . . . . 1 Alert | -11 -10 -10 -9 -9 -9 -9 -6 -6 -6 -6 -6 -6 -5 -5 -5 -5 ------- Run | Yrd Mat Min Mat Sto Rec Scr Fac Was Fac Low Low Dat Pro Fac Was Fac Maximum Alert Level 3 | . 1 . 2 2 1 . 1 . 3 . . . . . . 3 Low Security (%) 54 | 100 92 100 29 38 53 . 91 100 7 . . . . 100 100 34 Level 1 27 | . 7 . 64 33 46 . 8 . 22 . . . . . . 12 Level 2 16 | . . . 5 27 . . . . 20 . . . . . . 50 Level 3 2 | . . . . . . . . . 48 . . . . . . 2 Level 4 . | . . . . . . . . . . . . . . . . . Level 5 . | . . . . . . . . . . . . . . . . . High Security . | . . . . . . . . . . . . . . . . . Max Security . | . . . . . . . . . . . . . . . . . Peak Influence 953 | 10 219 79 418 645 277 . 377 106 953 . . . . 27 9 781 Initial 247 | . . 79 . 172 247 . . 106 . . . . . 6 9 . Average 216 | . 65 42 253 284 179 . 32 30 614 . . . . 4 2 326 Influence Increases 8611 | 20 856 . 1028 1498 331 15 555 60 1384 925 20 . 20 73 . 1826 Destroy 0b10 Robot/C 3380 | . 420 . 640 700 60 . 120 . 460 380 20 . 20 . . 560 Destroy 0b10 Robot/NC 750 | 20 75 . 60 295 10 . 75 . 85 5 . . . 5 . 120 Destroy Leader 860 | . 100 . 214 236 . . 36 . 98 30 . . . . . 146 Allied During Kill 521 | . . . . . . . 2 . 507 . . . . . . 12 Successful Hack 375 | . 67 . 30 43 51 . 28 . 52 . . . . 22 . 82 Select Force Hacks 330 | . 30 . 30 60 210 . . . . . . . . . . . Disable Machine 420 | . 45 . 30 60 . . 195 . 30 . . . . . . 60 Destroy Structure 625 | . 14 . 9 44 . . 84 60 92 . . . . 16 . 306 Partial Spotted 75 | . . . . . . . . . 15 . . . . 15 . 45 Lose Combat Pursuer 1275 | . 105 . 15 60 . 15 15 . 45 510 . . . 15 . 495 Influence Decreases 7872 | 20 651 205 618 1274 905 74 251 365 448 1007 497 377 10 56 27 1087 Entered New Map 1920 | . . 126 . 238 387 60 1 199 . 347 163 377 . 4 18 . Time Decay 4610 | 20 509 79 608 736 518 4 140 146 268 610 334 . 10 52 9 567 Lost Part 380 | . 20 . 10 . . 10 90 . 10 10 . . . . . 230 Lost Ally 390 | . . . . . . . 20 20 170 40 . . . . . 140 Purge Threat 572 | . 122 . . 300 . . . . . . . . . . . 150 Squads Dispatched 53 | . 4 . 5 7 . . 7 . 4 . . . . 2 . 24 Investigation 25 | . 3 . 2 3 . . 4 . 1 . . . . 1 . 11 Extermination 7 | . . . . . . . 2 . 1 . . . . . . 4 Reinforcement 21 | . 1 . 3 4 . . 1 . 2 . . . . 1 . 9 Assault . | . . . . . . . . . . . . . . . . . Garrison . | . . . . . . . . . . . . . . . . . Intercept . | . . . . . . . . . . . . . . . . . Searches Triggered . | . . . . . . . . . . . . . . . . . Data Miner Redirects 5 | . . . . . . . . . . . . . . 1 . 4 Construction Impeded 7 | . . . . 2 . . 1 . 2 . . . . . . 2 Haulers Reinforced 1 | . . . . . . . . . . . . . . . . 1 Active Scanning Responses . | . . . . . . . . . . . . . . . . . Cargo Convoy Interrupts 1 | . . . . . . . . . . . . . . . . 1 Stealth | -11 -10 -10 -9 -9 -9 -9 -6 -6 -6 -6 -6 -6 -5 -5 -5 -5 --------- Run | Yrd Mat Min Mat Sto Rec Scr Fac Was Fac Low Low Dat Pro Fac Was Fac Distress Signals 20 | . 4 . 4 3 . . . . 1 1 . . . . . 7 Communications Jammed 16 | . . . . . . . . . . . . . . 2 . 14 Distress Signals 16 | . . . . . . . . . . . . . . 2 . 14 Times Spotted 320 | . 34 . 40 46 3 17 14 4 24 52 . . 2 5 6 73 Peak Tracking Total 11 | . 6 . 7 8 1 7 5 2 7 9 . . 2 3 6 11 Tactical Retreats 54 | . 6 . 1 3 . 2 1 . 3 23 . . . 1 . 14 ECM-based Alert Blocks 6 | . . . . . . . . . . . . . . . . 6 Traps | -11 -10 -10 -9 -9 -9 -9 -6 -6 -6 -6 -6 -6 -5 -5 -5 -5 ------- Run | Yrd Mat Min Mat Sto Rec Scr Fac Was Fac Low Low Dat Pro Fac Was Fac Traps Triggered 17 | . 2 . 1 2 . . 1 . 1 . . . . 2 . 8 Indirectly . | . . . . . . . . . . . . . . . . . Trap Hack Attempts . | . . . . . . . . . . . . . . . . . Triggered . | . . . . . . . . . . . . . . . . . Disarmed . | . . . . . . . . . . . . . . . . . Reprogrammed . | . . . . . . . . . . . . . . . . . Reused . | . . . . . . . . . . . . . . . . . Traps Extracted . | . . . . . . . . . . . . . . . . . Installed . | . . . . . . . . . . . . . . . . . Triggered . | . . . . . . . . . . . . . . . . . Machines | -11 -10 -10 -9 -9 -9 -9 -6 -6 -6 -6 -6 -6 -5 -5 -5 -5 ---------- Run | Yrd Mat Min Mat Sto Rec Scr Fac Was Fac Low Low Dat Pro Fac Was Fac Machines Disabled 36 | . 3 . 2 4 . 7 13 . 2 1 . . . . . 4 Max in Single Turn 5 | . 1 . 1 1 . 1 5 . . . . . . . . 2 Garrison Access 3 | . . . . 1 . . . . . . . . . . . 2 Machines Repaired . | . . . . . . . . . . . . . . . . . Machines Dismantled 1 | . . . . 1 . . . . . . . . . . . . Machines Sabotaged . | . . . . . . . . . . . . . . . . . Overloaded Fab Kills . | . . . . . . . . . . . . . . . . . Hacking | -11 -10 -10 -9 -9 -9 -9 -6 -6 -6 -6 -6 -6 -5 -5 -5 -5 --------- Run | Yrd Mat Min Mat Sto Rec Scr Fac Was Fac Low Low Dat Pro Fac Was Fac Machines Accessed 100 | . 9 . 11 14 13 4 11 . 4 1 1 2 . 4 . 26 Terminals 50 | . 7 . 7 10 6 . 5 . 2 . . . . 2 . 11 Fabricators 5 | . . . . . . . 1 . . . . . . 1 . 3 Repair Stations 8 | . 1 . 1 1 . . 2 . 1 . . . . . . 2 Recycling Units 21 | . 1 . 1 2 7 . 3 . 1 . . . . . . 6 Scanalyzers 5 | . . . 2 . . . . . . . . . . 1 . 2 Garrison Access 3 | . . . . 1 . . . . . . . . . . . 2 Total Hacks 298 | . 41 . 34 33 33 28 18 . 10 1 1 19 . 10 . 70 Successful 196 | . 25 . 18 21 22 28 4 . 4 1 1 19 . 8 . 45 Failed 99 | . 15 . 15 12 10 . 14 . 6 . . . . 2 . 25 Catastrophic 17 | . 1 . . 2 . . 8 . 1 . . . . 1 . 4 Database Lockouts 3 | . 1 . 1 . 1 . . . . . . . . . . . Manual 158 | . 25 . 26 20 29 . 11 . 5 . . . . 6 . 36 Terminals 161 | . 34 . 26 24 25 . 9 . 4 . . . . 4 . 35 Fabricators 16 | . . . . . . . 1 . . . . . . 4 . 11 Repair Stations 24 | . 4 . 3 3 . . 3 . 3 . . . . . . 8 Recycling Units 32 | . 3 . 1 4 8 . 5 . 3 . . . . . . 8 Scanalyzers 12 | . . . 4 . . . . . . . . . . 2 . 6 Garrison Access 4 | . . . . 2 . . . . . . . . . . . 2 Terminal Hacks 92 | . 10 . 4 9 7 28 . . 2 1 1 19 . . . 11 Record 28 | . . . . . . 28 . . . . . . . . . . Part Schematic 16 | . 1 . 1 . 2 . . . . . . 10 . . . 2 Robot Schematic 10 | . . . 1 1 2 . . . . . . 6 . . . . Robot Analysis 8 | . 5 . 1 . 2 . . . . . . . . . . . Prototype ID Bank 7 | . 1 . 1 1 1 . . . . . . 3 . . . . Open Door 5 | . . . . 3 . . . . . 1 1 . . . . . Branch Access Points 2 | . . . . . . . . . 1 . . . . . . 1 Terminal Index 1 | . . . . . . . . . . . . . . . . 1 Fabricator Index 1 | . . . . . . . . . . . . . . . . 1 Alert Level 1 | . . . . 1 . . . . . . . . . . . . Unreport Threat 4 | . 1 . . 2 . . . . . . . . . . . 1 Locate Traps 6 | . 2 . . 1 . . . . 1 . . . . . . 2 Extermination Status 1 | . . . . . . . . . . . . . . . . 1 Recall Investigation 1 | . . . . . . . . . . . . . . . . 1 Recall Reinforcements 1 | . . . . . . . . . . . . . . . . 1 Fabricator Hacks 8 | . . . . . . . . . . . . . . 2 . 6 Load Schematic 4 | . . . . . . . . . . . . . . 1 . 3 Build 4 | . . . . . . . . . . . . . . 1 . 3 Repair Station Hacks 12 | . 2 . 3 2 . . . . 1 . . . . . . 4 Scan Component 6 | . 1 . 1 1 . . . . 1 . . . . . . 2 Repair 4 | . 1 . 1 1 . . . . . . . . . . . 1 Refit 2 | . . . 1 . . . . . . . . . . . . 1 Recycling Unit Hacks 1 | . . . . . . . . . . . . . . . . 1 Retrieve Components 1 | . . . . . . . . . . . . . . . . 1 Scanalyzer 8 | . . . 2 . . . . . . . . . . 2 . 4 Insert Component 2 | . . . 1 . . . . . . . . . . 1 . . Analyze 2 | . . . 1 . . . . . . . . . . 1 . . Retrieve Study 4 | . . . . . . . . . . . . . . . . 4 Garrison Access Hacks 3 | . . . . 1 . . . . . . . . . . . 2 Seal Access 3 | . . . . 1 . . . . . . . . . . . 2 Unauthorized Hacks 72 | . 13 . 9 9 15 . 4 . 1 . . . . 4 . 17 Terminals 45 | . 11 . 8 6 8 . 1 . 1 . . . . 2 . 8 Track 2 | . 1 . . . . . . . . . . . . . . 1 Botnet 17 | . 4 . 3 1 3 . . . 1 . . . . 2 . 3 Operators 1 | . . . . . . . 1 . . . . . . . . . Skim 25 | . 6 . 5 5 5 . . . . . . . . . . 4 Fabricators 6 | . . . . . . . 1 . . . . . . 2 . 3 Report 1 | . . . . . . . . . . . . . . . . 1 Prioritize 2 | . . . . . . . . . . . . . . 1 . 1 Liberate 1 | . . . . . . . 1 . . . . . . . . . Haulers 2 | . . . . . . . . . . . . . . 1 . 1 Repair Stations 1 | . . . . 1 . . . . . . . . . . . . Patch 1 | . . . . 1 . . . . . . . . . . . . Recycling Units 20 | . 2 . 1 2 7 . 2 . . . . . . . . 6 Mask 1 | . 1 . . . . . . . . . . . . . . . Tunnel 11 | . 1 . 1 2 7 . . . . . . . . . . . Fedlink 6 | . . . . . . . 2 . . . . . . . . 4 Scrapoids 1 | . . . . . . . . . . . . . . . . 1 Scraphulk 1 | . . . . . . . . . . . . . . . . 1 Scanalyzers . | . . . . . . . . . . . . . . . . . Garrison Access . | . . . . . . . . . . . . . . . . . Data Cores Recovered 5 | . 1 . . 1 . . 2 . . . . . . . . 1 Used 1 | . . . . . . . . . . . . . . . . 1 Hacking Detections 73 | . 9 . 8 12 6 . 10 . 4 . . . . 4 . 20 Full Trace Events 11 | . 2 . . . 1 . 2 . 1 . . . . 1 . 4 Feedback Events 1 | . . . . . . . 1 . . . . . . . . . Corruption 1 | . . . . . . . 1 . . . . . . . . . Feedback Blocked . | . . . . . . . . . . . . . . . . . Robot Schematics Acquired 10 | . . . 1 1 2 . . . . . . 6 . . . . Robots Built . | . . . . . . . . . . . . . . . . . Authchips . | . . . . . . . . . . . . . . . . . Time . | . . . . . . . . . . . . . . . . . Total Robot Build Rating . | . . . . . . . . . . . . . . . . . Part Schematics Acquired 18 | . 1 . 2 . 2 . . . . . . 10 . 1 . 2 Parts Built 4 | . . . . . . . . . . . . . . 1 . 3 Authchips . | . . . . . . . . . . . . . . . . . Time 266 | . . . . . . . . . . . . . . 84 . 182 Total Part Build Rating 23 | . . . . . . . . . . . . . . 6 . 17 Part Studies Acquired 4 | . . . . . . . . . . . . . . . . 4 Parts Repaired 4 | . 1 . 1 1 . . . . . . . . . . . 1 Time 117 | . 16 . 38 38 . . . . . . . . . . . 25 Parts Recycled . | . . . . . . . . . . . . . . . . . Recycled Matter . | . . . . . . . . . . . . . . . . . Retrieved Matter . | . . . . . . . . . . . . . . . . . Retrieved Components 10 | . . . . . . . . . . . . . . . . 10 Parts Scanalyzed 2 | . . . 1 . . . . . . . . . . 1 . . Part Schematics Acquired 2 | . . . 1 . . . . . . . . . . 1 . . Parts Damaged . | . . . . . . . . . . . . . . . . . Bothacking | -11 -10 -10 -9 -9 -9 -9 -6 -6 -6 -6 -6 -6 -5 -5 -5 -5 ------------ Run | Yrd Mat Min Mat Sto Rec Scr Fac Was Fac Low Low Dat Pro Fac Was Fac Used RIF Installer . | . . . . . . . . . . . . . . . . . Robots Hacked . | . . . . . . . . . . . . . . . . . Non-combat . | . . . . . . . . . . . . . . . . . Combat . | . . . . . . . . . . . . . . . . . Robot Hacks Applied . | . . . . . . . . . . . . . . . . . Relay Couplers Released . | . . . . . . . . . . . . . . . . . Fabnet Peak Effective % . | . . . . . . . . . . . . . . . . . Robots Rewired 2 | . . . . . . . . . . 2 . . . . . . Allies Hacked . | . . . . . . . . . . . . . . . . . Hacks Repelled . | . . . . . . . . . . . . . . . . . Allies | -11 -10 -10 -9 -9 -9 -9 -6 -6 -6 -6 -6 -6 -5 -5 -5 -5 -------- Run | Yrd Mat Min Mat Sto Rec Scr Fac Was Fac Low Low Dat Pro Fac Was Fac Total Allies 29 | . . . . . . . 3 18 . 2 . . . . . 6 Largest Group 18 | . . . . . . . 3 18 13 2 . . . . . 4 Highest-Rated Group 656 | . . . . . . . 87 656 521 40 . . . . . 188 Highest-Rated Ally 123 | . . . . . . . 29 50 50 20 . . . . . 123 Total Orders 2 | . . . . . . . . . . 2 . . . . . . STAY 1 | . . . . . . . . . . 1 . . . . . . FOLLOW 1 | . . . . . . . . . . 1 . . . . . . Ally Attacks 243 | . . . . . . . 15 74 99 3 . . . . . 52 Total Damage 7711 | . . . . . . . 244 3041 3123 72 . . . . . 1231 Kills 45 | . . . . . . . 1 9 31 . . . . . . 4 Allies Corrupted 1 | . . . . . . . . . 1 . . . . . . . Allies Melted 5 | . . . . . . 1 . . 2 1 . . . . . 1 Intel | -11 -10 -10 -9 -9 -9 -9 -6 -6 -6 -6 -6 -6 -5 -5 -5 -5 ------- Run | Yrd Mat Min Mat Sto Rec Scr Fac Was Fac Low Low Dat Pro Fac Was Fac Active Infowar (turns) 11498 | 82 2667 162 814 800 . 2 540 497 615 1997 742 51 167 235 80 2047 Optics 6927 | . . . . . . . 540 497 615 1997 742 51 167 235 80 2003 Sensors 5440 | . . . . . . 2 441 407 504 1972 737 51 167 228 . 931 Terrain 1785 | 82 109 . 794 800 . . . . . . . . . . . . Seismic 3787 | 77 2603 162 805 140 . . . . . . . . . . . . Triangulation 419 | . . . . . . . . . . . . . . . . 419 Jamming 497 | . . . . . . . . . . . . . . 7 80 410 ECM 74 | . . . . . . . . 2 . . . . . . . 72 Robot Analysis Total 8 | . 5 . 1 . 2 . . . . . . . . . . . Derelict Logs Recovered 5 | . . . . . . . . . . 2 1 . 2 . . . Drone Launches 2 | . . . . . . . . . . . . . . . . 2 Drone Recoveries . | . . . . . . . . . . . . . . . . . Exploration | -11 -10 -10 -9 -9 -9 -9 -6 -6 -6 -6 -6 -6 -5 -5 -5 -5 ------------- Run | Yrd Mat Min Mat Sto Rec Scr Fac Was Fac Low Low Dat Pro Fac Was Fac Turns Passed 20871 | 180 2747 162 2162 3710 1432 3424 585 497 615 1997 742 51 167 235 80 2085 Spaces Moved 13943 | 77 1013 67 904 1088 575 2441 1051 469 764 2177 572 88 264 234 115 2044 Core 5 | 5 . . . . . . . . . . . . . . . . Treads 4861 | 72 1013 67 904 1088 575 1142 . . . . . . . . . . Legs . | . . . . . . . . . . . . . . . . . Wheels . | . . . . . . . . . . . . . . . . . Hover 6785 | . . . . . . . 58 469 764 2177 572 88 264 234 115 2044 Flight 2292 | . . . . . . 1299 993 . . . . . . . . . Fastest Speed 28 | 50 160 240 160 160 240 34 28 65 53 53 53 53 53 58 58 38 Average Speed 108 | 152 217 240 176 210 240 135 30 65 59 55 53 53 53 58 58 52 Slowest Speed 240 | 160 240 240 240 240 240 240 100 65 65 58 53 53 58 58 58 166 Overloaded Moves . | . . . . . . . . . . . . . . . . . Propulsion Burnouts . | . . . . . . . . . . . . . . . . . Robots Hopped 4 | . . . . . . 1 3 . . . . . . . . . Potential Cave-ins 11 | . . . . . . . . . . 1 . . . . . 10 Cave-ins Triggered . | . . . . . . . . . . . . . . . . . Exploration Rate (%) 64 | 5 92 25 86 93 97 91 29 96 23 88 81 75 48 11 95 54 Regions Visited 16 Branch Regions 8 Pre-discovered Areas 22 | . 2 . 4 4 9 . 1 . . 1 . . 1 . . . Known Exits Taken 9 | . 1 1 1 . 1 . . . 1 1 1 1 1 . . . Unknown Exits Taken 3 | 1 . . . 1 . 1 . . . . . . . . . . Scrap Searched 13 | . . . . . . 6 . . . 2 3 . 2 . . . Spaces Dug 138 | . 3 . . 20 . 4 28 . 9 21 1 . . 7 . 45 Terrain Destroyed 509 | . 10 . . 31 . 4 96 12 37 134 4 . 6 8 . 167 Melee 65 | . . . . 20 . 4 25 . . . . . . 5 . 11 Projectile 266 | . 10 . . 11 . . . 12 32 116 4 . 6 3 . 72 AOE 178 | . . . . . . . 71 . 5 18 . . . . . 84 Terrain Rammed . | . . . . . . . . . . . . . . . . . Walls Destroyed . | . . . . . . . . . . . . . . . . . Machines Disabled . | . . . . . . . . . . . . . . . . . Actions | -11 -10 -10 -9 -9 -9 -9 -6 -6 -6 -6 -6 -6 -5 -5 -5 -5 --------- Run | Yrd Mat Min Mat Sto Rec Scr Fac Was Fac Low Low Dat Pro Fac Was Fac Total 18178 | 111 1373 70 1293 2078 597 2541 1249 634 853 2751 1003 91 276 320 127 2811 Wait 2586 | 3 204 1 203 666 . . 108 119 32 408 422 . 7 70 13 330 Move 13921 | 76 1012 66 903 1087 574 2438 1045 468 763 2176 571 87 263 234 114 2044 Hop 4 | . . . . . . 1 3 . . . . . . . . . Pick Up 149 | 6 28 1 20 17 . 17 6 5 3 1 . . . 1 . 44 Fast Attach 110 | 8 6 . 3 5 . 16 15 10 4 6 2 2 . 2 . 31 Attach 91 | . 2 1 15 12 . 1 7 2 . . . . . 2 . 49 Detach 65 | 1 3 . 2 2 . 9 6 1 . . 1 . . . . 40 Swap 115 | 1 7 . 35 26 7 1 2 4 2 3 . . . 1 . 26 Drop 192 | 2 17 1 25 27 . 39 10 12 7 6 1 2 . 1 . 42 Fire 744 | 14 93 . 85 198 8 . 8 13 42 105 5 . 6 3 . 164 Melee 138 | . . . . 26 8 19 39 . . . . . . 6 . 40 Ram 1 | . . . . . . . . . . . . . . . . 1 Kick . | . . . . . . . . . . . . . . . . . Crush 3 | . 1 . 2 . . . . . . . . . . . . . Escape Stasis 4 | . . . . 4 . . . . . . . . . . . . Rewire 46 | . . . . . . . . . . 45 1 . . . . . Trap . | . . . . . . . . . . . . . . . . . Miscellaneous 9 | . . . . 8 . . . . . 1 . . . . . . Route ------- -11/Scrapyard -10/Materials (discovered 6 exits: *Mat x3 / *Min x2 / [*Sub]) -10/Mines (discovered 2 exits: *Mat x2) -9/Materials (discovered 7 exits: *Mat x3 / *Min x2 / *Sto x2) -9/Storage (discovered 2 exits: *Mat / *Rec) -9/Recycling (discovered 2 exits: *Fac / *Scr) -9/Scraptown (discovered 2 exits: *Fac x2) -6/Factory -6/Waste -6/Factory (discovered 2 exits: *Low x2) -6/Lower Caves -6/Lower Caves (discovered 2 exits: *Fac / *Dat) -6/Data Miner -5/Proximity Caves -5/Factory (discovered 3 exits: Fac x2 / Upp) -5/Waste -5/Factory (discovered 7 exits: *Fac x3 / *Upp x2 / *Ext x2) History --------- Turn | Location | Event 5 | -11/Scrapyard | Discovered new exit (range 15) 181 | -11/Scrapyard | Entered Materials 319 | -10/Materials | Build established: Mutant 674 | -10/Materials | Discovered new exit (range 14) 678 | -10/Materials | Discovered new exit (range 15) 741 | -10/Materials | Discovered new exit (range 6) 873 | -10/Materials | Central database locked down 1082 | -10/Materials | Repaired Imp. Light Cannon 1232 | -10/Materials | Discovered new exit (range 16) 1416 | -10/Materials | Learned 4 Subcaves zone layouts 1456 | -10/Materials | Identified exit to Materials 1487 | -10/Materials | Loaded intel: 20 trap records 1519 | -10/Materials | Learned location of Subcaves (-10) 1522 | -10/Materials | Learned location of 2 exits from Subcaves 1523 | -10/Materials | Identified exit to Mines 1523 | -10/Materials | Learned location of 2 exits from Materials 1526 | -10/Materials | Learned Storage emergency access door positions 1541 | -10/Materials | Learned Materials emergency access door positions 1604 | -10/Materials | Learned Storage emergency access door positions 2437 | -10/Materials | Core integrity fell below 50% 2928 | -10/Materials | Entered Mines 3037 | -10/Mines | Discovered exit to Materials (range 15) 3049 | -10/Mines | Received a Rocket Launcher from a helpful Derelict 3090 | -10/Mines | Entered Materials 3090 | -9/Materials | Evolved 2 slots: Propulsion x1, Utility x1 3091 | -9/Materials | Identified exit to Materials 3091 | -9/Materials | Identified exit to Storage 3195 | -9/Materials | Discovered new exit (range 8) 3522 | -9/Materials | Discovered exit to Materials (range 3) 3915 | -9/Materials | Learned location of Storage (-9) 3951 | -9/Materials | Learned location of 2 exits from Materials 3975 | -9/Materials | Learned location of 3 exits from Materials 3987 | -9/Materials | Learned location of Zion (-7) 3991 | -9/Materials | Learned location of 2 exits from Materials 3992 | -9/Materials | Identified exit to Mines 3993 | -9/Materials | Loaded intel: 2 recycling unit locations 3994 | -9/Materials | Learned location of 3 exits from Materials 4107 | -9/Materials | Central database locked down 4120 | -9/Materials | Discovered exit to Mines (range 12) 4161 | -9/Materials | Discovered exit to Storage (range 11) 4606 | -9/Materials | Repaired Hvy. Armor Plating 5252 | -9/Materials | Entered Storage 5547 | -9/Storage | Destroyed 8 combat bots 5748 | -9/Storage | Repaired Hvy. Armor Plating 6975 | -9/Storage | Learned Materials garrison access intel 7016 | -9/Storage | Learned Materials non-interactive machine intel 7048 | -9/Storage | Learned 4 Recycling zone layouts 7069 | -9/Storage | Learned location of Recycling (-9) 7097 | -9/Storage | Learned Storage emergency access door positions 7124 | -9/Storage | Learned 4 Recycling zone layouts 7384 | -9/Storage | Build established: Scavenger-Mutant 7877 | -9/Storage | Build established: Mutant 8953 | -9/Storage | Used back door to open Recycling access 8953 | -9/Storage | Discovered new exit (range 5) 8962 | -9/Storage | Entered Recycling 8963 | -9/Recycling | Identified exit to Factory 9418 | -9/Recycling | Build established: Scavenger-Mutant 9828 | -9/Recycling | Learned Materials trap positions 9887 | -9/Recycling | Learned Storage trap positions 9934 | -9/Recycling | Identified exit to Scraptown 9973 | -9/Recycling | Learned location of 1 exit from Recycling 10026 | -9/Recycling | Learned 2 Storage zone layouts 10102 | -9/Recycling | Learned Storage stockpile data 10283 | -9/Recycling | Build established: Mutant 10334 | -9/Recycling | Scanned before Scraplab entrance 10367 | -9/Recycling | Entered Scraplab 10394 | -9/Recycling | Entered Scraptown 10801 | -9/Scraptown | Visited UFD Registry 10801 | -9/Scraptown | Registered with UFD as "Chainslider" 10834 | -9/Scraptown | Visited The Evicted 10875 | -9/Scraptown | Visited SPCMW 10904 | -9/Scraptown | Visited Assassins FH 10928 | -9/Scraptown | Visited Red Mages 11002 | -9/Scraptown | Visited Spacefarers 11048 | -9/Scraptown | Visited IN-MT5's Study 11916 | -9/Scraptown | Discovered new exit (range 11) 12154 | -9/Scraptown | Visited Observation Area 12250 | -9/Scraptown | Visited Scrapoid Research Area 12314 | -9/Scraptown | Visited A0-MCA Data Center 12540 | -9/Scraptown | Visited Curators Association 12629 | -9/Scraptown | Visited Derelict Rescue Squad 12649 | -9/Scraptown | Found DRS Beacon 12691 | -9/Scraptown | Visited Infowarlord's Domain 12704 | -9/Scraptown | Found Spectral Analyzer 12738 | -9/Scraptown | Visited Abandonware Association 12762 | -9/Scraptown | Learned abandonware demo "ERRANTS.EXE" 12822 | -9/Scraptown | Visited Science Testing Area 12914 | -9/Scraptown | Visited DA-N13 Charitable Foundation 12923 | -9/Scraptown | Found DCF Scrap (29 items) 13471 | -9/Scraptown | Given an A+ rating by A0-MCA 13541 | -9/Scraptown | Found A0-MCA's Component Scanner 13598 | -9/Scraptown | Discovered new exit (range 5) 13643 | -9/Scraptown | Met Optimus 13643 | -9/Scraptown | Accepted into 0bPrime 13667 | -9/Scraptown | Civil war broke out across Scraptown 13725 | -9/Scraptown | Core integrity fell below 50% 13735 | -9/Scraptown | Found Prototype Processor 13735 | -9/Scraptown | Identified Expert System 13745 | -9/Scraptown | Lost 3 allies 13818 | -9/Scraptown | Entered Factory 13818 | -6/Factory | Evolved 6 slots: Power x1, Propulsion x3, Utility x2 13839 | -6/Factory | Lost 5 allies 13956 | -6/Factory | Spotted B-75 Beast 13996 | -6/Factory | Loaded intel: 8 recycling unit locations 14002 | -6/Factory | Learned location of Protoforge (-2) 14403 | -6/Factory | Sucked down chute 14403 | -6/Factory | Entered Waste 14407 | -6/Waste | Lost 9 parts (3p4n1u1w) 14436 | -6/Waste | Warlord forces began an assault 14552 | -6/Waste | Spotted C-40 Crusher 14560 | -6/Waste | Allies destroyed C-40 Crusher 14563 | -6/Waste | Spotted C-40 Crusher 14586 | -6/Waste | Spotted C-40 Crusher 14589 | -6/Waste | Spotted C-40 Crusher 14589 | -6/Waste | Allies destroyed C-40 Crusher 14592 | -6/Waste | Allies destroyed C-40 Crusher 14600 | -6/Waste | Allies destroyed C-40 Crusher 14625 | -6/Waste | Lost 5 allies 14633 | -6/Waste | Spotted C-40 Crusher 14644 | -6/Waste | Destroyed C-40 Crusher 14664 | -6/Waste | Found Prototype Device 14664 | -6/Waste | Identified Exp. ECM Suite 14681 | -6/Waste | Spotted C-40 Crusher 14682 | -6/Waste | Allies destroyed C-40 Crusher 14688 | -6/Waste | Discovered new exit (range 23) 14808 | -6/Waste | Build established: Scout 14848 | -6/Waste | Identified exit to Factory 14900 | -6/Waste | Entered Factory 14900 | -6/Factory | Accompanied by 13 allies 15171 | -6/Factory | Identified exit to Lower Caves 15259 | -6/Factory | Lost 3 allies 15515 | -6/Factory | Entered Lower Caves 15576 | -6/Lower Caves | Attracted the attention of an 0b10 outpost 15708 | -6/Lower Caves | Learned Factory terminal intel 17242 | -6/Lower Caves | Attracted the attention of an 0b10 checkpoint 17254 | -6/Lower Caves | Activated DRS Beacon 17403 | -6/Lower Caves | Discovered new exit (range 8) 17474 | -6/Lower Caves | Identified exit to Lower Caves 17512 | -6/Lower Caves | Entered another Lower Caves area 17517 | -6/Lower Caves | Spotted B-75 Beast 17521 | -6/Lower Caves | Discovered new exit (range 22) 17593 | -6/Lower Caves | Learned location of 1 exit from Factory 18224 | -6/Lower Caves | Discovered new exit (range 11) 18254 | -6/Lower Caves | Identified exit to Data Miner 18254 | -6/Lower Caves | Entered Data Miner 18254 | -6/Data Miner | Discovered new exit (range 7) 18261 | -6/Data Miner | Met Data Miner 18283 | -6/Data Miner | Received God Mode back door access code from Data Miner 18304 | -6/Data Miner | Identified exit to Proximity Caves 18305 | -6/Data Miner | Entered Proximity Caves 18366 | -5/Proximity Caves | Learned 8 Factory zone layouts 18435 | -5/Proximity Caves | Attracted the attention of an 0b10 checkpoint 18464 | -5/Proximity Caves | Discovered new exit (range 13) 18471 | -5/Proximity Caves | Identified exit to Factory 18472 | -5/Proximity Caves | Entered Factory 18472 | -5/Factory | Evolved 2 slots: Utility x2 18473 | -5/Factory | Identified exit to Factory 18474 | -5/Factory | Identified exit to Upper Caves 18475 | -5/Factory | Loaded intel: 24 terminal locations 18514 | -5/Factory | Incoming investigation squad redirected 18578 | -5/Factory | Fabricated Combat Drone Bay (x1) 18601 | -5/Factory | Spotted B-75 Beast 18707 | -5/Factory | Sucked down chute 18707 | -5/Factory | Entered Waste 18712 | -5/Waste | Spotted C-40 Crusher 18718 | -5/Waste | Spotted C-40 Crusher 18722 | -5/Waste | EMP discharged 18725 | -5/Waste | Spotted C-40 Crusher 18727 | -5/Waste | Spotted C-40 Crusher 18730 | -5/Waste | Crushed by Compactor (0 parts destroyed, 2 dropped) 18731 | -5/Waste | Spotted C-40 Crusher 18732 | -5/Waste | Discovered new exit (range 24) 18741 | -5/Waste | Spotted C-40 Crusher 18785 | -5/Waste | Identified exit to Factory 18787 | -5/Waste | Entered Factory 18829 | -5/Factory | Discovered new exit (range 21) 18846 | -5/Factory | Identified exit to Extension 18967 | -5/Factory | Discovered exit to Factory (range 17) 19001 | -5/Factory | Incoming investigation squad redirected 19010 | -5/Factory | Loaded intel: 8 recycling unit locations 19154 | -5/Factory | Fabricated Adv. Hacking Suite (x1) 19181 | -5/Factory | Fabricated Gui. EMP Blaster (x1) 19404 | -5/Factory | Repaired Adv. Sensor Array 19781 | -5/Factory | Noticed a derelict Sapper rigging charges 19828 | -5/Factory | Assembled infested ambush trap array 20000 | -5/Factory | System corruption reached 10% 20031 | -5/Factory | Fabricated Adv. Hacking Suite (x1) 20090 | -5/Factory | Discovered exit to Factory (range 23) 20145 | -5/Factory | Spotted B-75 Beast 20180 | -5/Factory | Attached CPS modules to P-70 Sage. 20195 | -5/Factory | Attached CPS modules to P-70 Sage. 20200 | -5/Factory | Lost 4 parts (1p2n1u) 20258 | -5/Factory | Scrapoids reinforcements arrived? 20275 | -5/Factory | Destroyed B-75 Beast 20283 | -5/Factory | Found Scrap Suit 20287 | -5/Factory | Cargo convoy interrupted 20301 | -5/Factory | Lost 5 allies 20305 | -5/Factory | Core integrity fell below 50% 20468 | -5/Factory | Lost 4 parts (1p1n1u1w) 20470 | -5/Factory | Build established: Hacker-Mutant 20480 | -5/Factory | Found Scrap Suit 20580 | -5/Factory | Incoming investigation squad redirected 20623 | -5/Factory | Incoming investigation squad redirected 20687 | -5/Factory | Discovered exit to Factory (range 20) 20738 | -5/Factory | Core integrity fell below 20% 20766 | -5/Factory | Lost 4 parts (1p1n1u1w) 20788 | -5/Factory | Found Corrupted Prototype Launcher 20788 | -5/Factory | Identified Gui. Micro-nuke Launcher 20794 | -5/Factory | Found Corrupted Prototype Device 20794 | -5/Factory | Identified Exp. Transmission Jammer 20804 | -5/Factory | Incoming investigation squad redirected 20807 | -5/Factory | Scraphulk reinforcements arrived 20872 | -5/Factory | Self-destructed Last Messages --------------- 20856_ Dropped Hvy. Phase Cannon. 20857_ Acquired Neutron Cannon. 20861_ W-25 Informer distress signal jammed. 20861_ C-45 Heavy ARC bursts open, deploying its payload. 20861_ X-72 Disruptor unfolds itself. 20861_ P-70 Sage unfolds itself. 20861_ H-66 Slayer unfolds itself. 20869_ Power Conduit explodes. 20869_ P-70 Sage destroyed. 20869_ G-50 Soldier destroyed. 20869_ Power Conduit explodes. 20869_ G-50 Soldier destroyed. 20869_ Lgt. Ion Engine+ destroyed. 20869_ Gravmag Array+ destroyed. 20869_ K-01 Serf destroyed. 20870_ Antigrav System+ destroyed. 20871_ Slug penetrates Wall. 20871_ Wheel destroyed. 20871_ Slug penetrates Wall. Map ----- +----------------------------------------------------+ | # #####/# #/##?????????????????????????????????? | | # ## #%### "#?????????????????????????????????? | | # # "##=#### #??????????????????????????????????? | | #% % ###????????????????????????????????? | | " #????????????????????????????????? | | + % +????????????????????????????????? | | #"#" #????????????????????????????????? | | ## " ##????????????????????????????????? | | ##?#" #?????????????????????????????????? | | ???# !%! #??#######????????????? #???????? | | #??# ! #??# ########## #???????? | | ##??## #### #???????? | | #????# " " ????????? | | ????# #####+### #???????? | | =??####/### ## ########## ??????????? | | ?# ! #"" #### ###????????????????????????? | | ?# ! #"" #??# #????####??????????????????? | | ?# =! #"T #??# ##### # ####???????????????? | | ## !* #"" #??# ## #???????????????? | | ## [ [ #"" ####g##; ; #???????????????? | | ## | # # ##???????????????? | | ############### #???????????????? | | !!#?????????????# #???????????????? | | ! #?????????????# #???????????????? | | ??????????????# ## #???????????? | | ##???????????????# @ = #???????????? | | ?????????????????# #####???????????? | | #????????????????# #???????????????? | | #????????????????# "S #???????????????? | | #????????????????# """ ; ##???????????????? | | #????????????????# "" [ ;# #???????????????? | | #????????????????# x ;#?#???????????????? | | #??????????????#########/###########?????????????? | | #??????????????# h #?????????????? | | #??????????????# x #?????????????? | | #??????????????# #?????????????? | | #??????????????+ %""""""""" #?????????????? | | #??????????????# """"""""" #?????????????? | | #??????????????# """"""""" ! [ #?????????????? | | ################ """"""""" #?????????????? | | = * """"""""" #?????????????? | | """"""""" +?????????????? | | " #?????????????? | | " ! ! #?????????????? | | " #?????????????? | | ! #### ######+######??### #?????????????? | | " #??# #????????????????# ############### | | " #??# #?????????? ?#???# | | " #??# #????????" ##### | | #??#=#??????""" / ==! | +----------------------------------------------------+ Best States ------------- Heat Dissipation 71 Energy Generation 28 Energy Capacity 480 Matter Stores 300 Matter Capacity 300 Sight Range 24 Robot Scan Range 18 Terrain Scan Range 16 Terrain Scan Density 10 ECM Strength 3 Jamming Range 22 EM Shielding 3 Armor Coverage 600 Resistance: KI 20 Melee Speed Boost 30 Evasion (%) 64 Recoil Reduction 3 Salvage Targeting 4 Offensive Hacking 36 Item Schematics ----------------- Hcp. Storage Unit | -10/Materials | Hacked Plasma Cutter | -9/Materials | Hacked Transport Network Coupler | -9/Materials | Scanalyzed Shotgun | -9/Recycling | Hacked Hvy. EM Pulse Gun | -9/Recycling | Hacked Combat Drone Bay | -6/Data Miner | Free Lgt. Regenerative Plating | -6/Data Miner | Free Enh. Flexi-carbon Leg | -6/Data Miner | Free Exp. Heat Sink | -6/Data Miner | Free Neutron Cannon | -6/Data Miner | Free Centrium Wheel | -6/Data Miner | Free Adv. Trap Scanner | -6/Data Miner | Free Dispersion Rifle | -6/Data Miner | Free Imp. Focal Shield | -6/Data Miner | Free Com. HERF Cannon | -6/Data Miner | Free CPS Tube | -5/Factory | Scanalyzed Adv. Hacking Suite | -5/Factory | Hacked Gui. EMP Blaster | -5/Factory | Hacked Robot Schematics ------------------ M-13 Machinist | -9/Materials | Hacked O-16 Technician | -9/Storage | Hacked A-02 Transporter | -9/Recycling | Hacked Y-45 Defender | -9/Recycling | Hacked B-48 Gladiator | -6/Data Miner | Free M-22 Extractor | -6/Data Miner | Free I-36 Angel | -6/Data Miner | Free A-15 Conveyor | -6/Data Miner | Free H-66 Slayer | -6/Data Miner | Free R-10 Processor | -6/Data Miner | Free Fabricated ------------ Combat Drone Bay | x1 | -5/Factory Adv. Hacking Suite | x1 | -5/Factory Gui. EMP Blaster | x1 | -5/Factory Adv. Hacking Suite | x1 | -5/Factory Repaired ---------- Imp. Light Cannon | 28% | -10/Materials Hvy. Armor Plating | 80% | -9/Materials Hvy. Armor Plating | 58% | -9/Storage Adv. Sensor Array | 20% | -5/Factory Studied --------- Gravmag Array | -5/Factory | Hacked Antigrav System | -5/Factory | Hacked Lgt. Ion Engine | -5/Factory | Hacked Mic. Fission Core | -5/Factory | Hacked Alien Tech Used ----------------- None Achievements -------------- Hulk Smash Uncivil War Challenges ------------ None Game ------ Seed ArmoredAblativeArticulator Manual? 0 Play Time 03:43:17 Cumulative 425.0 hours Start 2025.11.12 @ 22:39:49 End 2025.11.13 @ 03:30:19 Sessions 1 Manual Loads 0 Difficulty Rogue Special Mode None Game No. 185 Rogue 177 Adventurer 8 Explorer 0 Win Type - Total 28 Types 14/1/4/3/0/1/1/1/2/1 Lore% 90 Gallery% 90 Achievement% 78 Wizard Run 0 Options --------- Layout 2 ASCII 0 Keyboard 1 Movement Numpad Keybinds 1 Fullscreen 2 Font 24/Smallcaps Map View 50x44 Zoom Use 0% Tactical HUD 1 Map Filters NONE Filters NONE Steam 1 RUN: 0f7ae97f-1323-4b7c-8778-35b2fb0d7e52